lending/lending_fUSD_20260119
["ID","MTS","AMOUNT","RATE_DAILY","PERIOD"]
[402682946,1768800645582,-1296.7,0.00017956,2]
[402682947,1768800645591,-150.0,0.00017973,2]
[402682948,1768800645602,-500.0,0.00017973,2]
[402682949,1768800645611,-750.0,0.00017979,2]
[402682950,1768800645620,-500.0,0.00017982,2]
[402682951,1768800645629,-3912.6493349,0.00017992,2]
[402682952,1768800645639,-10790.2561714,0.00017997,2]
[402682953,1768800645649,-231.92767047,0.00017998,2]
[402682954,1768800645658,-150.0,0.00017999,2]
[402682955,1768800645668,-200.35890483,0.00017999,2]
[402682956,1768800645677,-500.0,0.00017999,2]
[402682957,1768800645686,-500.0,0.00017999,2]
[402682958,1768800645696,-500.0,0.00017999,2]
[402682959,1768800645705,-500.0,0.00017999,2]
[402682960,1768800645714,-500.0,0.00017999,2]
[402682961,1768800645723,-500.0,0.00017999,2]
[402682962,1768800645733,-428.46849167,0.00017999,2]
[402682963,1768800645742,-197.72778731,0.00017999,2]
[402682964,1768800645751,-151.0,0.00017999,2]
[402682965,1768800645760,-151.0,0.00017999,2]
[402682966,1768800645770,-1869308.53597827,0.00018,2]
[402682967,1768800646730,-1.7e-07,0.00018,2]
[402682968,1768800647582,-2164.38702009,0.00015997,2]
[402682969,1768800647633,296.44,0.0001524,2]
[402682970,1768800647870,-364.35000002,0.00015997,2]
[402682971,1768800696423,-612.72676971,0.00015677,2]
[402682972,1768800697942,-241.38356668,0.00015677,2]
[402682973,1768800700265,-302.4460822,0.00015677,2]
[402682974,1768800701805,-360.27484085,0.00015677,2]
[402682975,1768800704435,-245.70075882,0.00015677,2]
[402682976,1768800706578,-641.57898174,0.00015677,2]
[402682977,1768800706602,-158.50428481,0.00015677,2]
[402682978,1768800740867,-32.90871519,0.00015677,2]
[402682979,1768800740889,-182.31053033,0.00015705,2]
[402682980,1768800740910,-48.63694046,0.00015733,2]
[402682981,1768800746257,-112.290192,0.00015733,2]
[402682982,1768800746279,-76.71520807,0.00015733,2]
[402682983,1768800760011,795.11,0.00015199,2]
[402682984,1768800768050,-223.28479193,0.00015733,2]
[402682985,1768800768074,-195.0,0.00015788,2]
[402682986,1768800768096,-302.77664069,0.00015841,2]
[402682987,1768800768119,-195.0,0.00015869,2]
[402682988,1768800768142,-167.85424787,0.00015899,2]
[402682989,1768800768166,-500.0,0.00015915,2]
[402682990,1768800768190,-500.0,0.00015915,2]
[402682991,1768800768211,-150.0,0.00015915,2]
[402682992,1768800768235,-150.0,0.00015915,2]
[402682993,1768800768258,-300.0,0.00015927,2]
[402682994,1768800768282,-9624.52691048,0.00015928,2]
[402682995,1768800768305,-578.79683672,0.0001597,2]
[402682996,1768800768328,-500.0,0.0001597,2]
[402682997,1768800768355,-150.0,0.0001597,2]
[402682998,1768800768378,-150.0,0.0001597,2]
[402682999,1768800770931,-189.91285204,0.00015996,2]
[402683000,1768800774253,-200.0,0.00015996,2]
[402683001,1768800775302,618.76057231,0.00015897,2]
[402683002,1768800775728,-496.44153654,0.00015897,2]
[402683003,1768800840828,159.19,0.00012188,2]
[402683006,1768800965892,-150.0,0.00015685,2]
[402683007,1768800965917,-78.41445249,0.00015791,2]
[402683008,1768800967577,-171.58554751,0.00015791,2]
[402683009,1768800967602,-29.7301576,0.00015897,2]
[402683010,1768800969053,-286.95483355,0.00015897,2]
[402683011,1768800969078,-80.06704046,0.00015897,2]
[402683014,1768800972147,-747.20991365,0.00015897,2]
[402683015,1768800980899,-172.72304589,0.00015897,2]
[402683016,1768800980923,-92.97986925,0.00015897,2]
[402683021,1768801100895,-195.1085223,0.00015896,2]
[402683023,1768801164634,1139.0,0.000155,6]
[402683024,1768801187601,200.0,0.0001511,2]
[402683026,1768801508056,340.72,0.00026116,120]
[402683027,1768801508582,340.72,0.00026166,120]
[402683028,1768801509164,340.72,0.00026215,120]
[402683029,1768801510268,340.72,0.00026265,120]
[402683030,1768801510863,340.72,0.00026315,120]
[402683031,1768801511442,340.72,0.00026365,120]
[402683032,1768801511960,340.72,0.00026415,120]
[402683033,1768801512532,340.72,0.00026464,120]
[402683034,1768801513075,340.72,0.00026514,120]
[402683035,1768801513603,340.72,0.00026564,120]
[402683036,1768801514193,340.72,0.00026614,120]
[402683037,1768801515414,340.72,0.00026663,120]
[402683038,1768801515507,340.72,0.00026713,120]
[402683039,1768801515866,340.72,0.00026763,120]
[402683040,1768801516385,340.72,0.00027359,120]
[402683041,1768801551238,2035.0,0.00015467,2]
[402683042,1768801560027,7605.82,0.00015071,2]
[402683043,1768801560051,10000.01,0.00015071,2]
[402683044,1768801560075,10000.01,0.00015071,2]
[402683045,1768801560099,10000.01,0.00015071,2]
[402683046,1768801560123,2426.52,0.00015071,2]
[402683047,1768801573031,1665.0,0.00015467,2]
[402683048,1768801579107,2000.0,0.00015467,2]
[402683049,1768801583195,2000.0,0.00015467,2]
[402683050,1768801599510,390.0,0.00027,120]
[402683051,1768801602171,-167.93832217,0.00015894,2]
[402683052,1768801640983,-172.02063106,0.000158,5]
[402683053,1768801644243,-27.97936894,0.000158,5]
[402683054,1768801644268,-161.37643401,0.00015815,2]
[402683055,1768801647108,-266.64613231,0.00015815,2]
[402683056,1768801650261,-208.38867204,0.00015815,2]
[402683057,1768801652958,-161.28693797,0.00015815,2]
[402683058,1768801654125,-199.22287407,0.00015815,2]
[402683059,1768801654869,172.09,0.00015049,2]
[402683060,1768801657292,-252.85258151,0.00015797,2]
[402683061,1768801660488,-215.00156885,0.00015797,2]
[402683062,1768801664853,-255.88840929,0.00015797,2]
[402683063,1768801669629,-421.86843115,0.00015797,2]
[402683064,1768801672242,-283.29410064,0.00015797,2]
[402683065,1768801673762,-282.56168724,0.00015797,2]
[402683066,1768801674969,1736.4,0.00015043,2]
[402683067,1768801674991,2607.83,0.00015043,2]
[402683068,1768801676257,-417.84520574,0.00015797,2]
[402683069,1768801678945,-194.78587535,0.00015797,2]
[402683070,1768801680746,-159.10899073,0.00015797,2]
[402683071,1768801684856,-151.99077629,0.00015796,2]
[402683072,1768801687686,-148.00922371,0.00015796,2]
[402683073,1768801687715,-7.51537477,0.00015797,2]
[402683074,1768801689781,-245.75619135,0.00015797,2]
[402683075,1768801692708,-213.91614905,0.00015716,2]
[402683076,1768801698421,-282.09685379,0.00015716,2]
[402683077,1768801702671,-258.95186582,0.00015716,2]
[402683078,1768801706339,-166.66,0.00015716,2]
[402683079,1768801708111,958.2,0.00015003,2]
[402683080,1768801708930,-159.97553597,0.00015716,2]
[402683081,1768801711803,-182.33073135,0.00015716,2]
[402683082,1768801714366,-250.97630603,0.00015716,2]
[402683083,1768801716916,-365.85296262,0.00015716,2]
[402683084,1768801811166,603.64,0.00026116,120]
[402683088,1768801811733,603.64,0.00026166,120]
[402683089,1768801812267,603.64,0.00027359,120]
[402683096,1768801831548,-493.77744492,0.00015716,2]
[402683097,1768801831563,-300.0,0.00015716,2]
[402683098,1768801831574,-195.0,0.00015716,2]
[402683099,1768801831584,-193.0,0.00015716,2]
[402683100,1768801831594,-281.0,0.00015716,2]
[402683101,1768801831604,-300.0,0.0001574,2]
[402683102,1768801831614,-187.98100774,0.00015755,2]
[402683103,1768801831624,-29.06999789,0.00015795,2]
[402683104,1768801831658,-270.93000211,0.00015795,2]
[402683105,1768801831668,-300.0,0.00015795,2]
[402683106,1768801831678,-1200.0,0.00015795,2]
[402683107,1768801831688,-300.0,0.00015795,2]
[402683108,1768801831698,-500.0,0.00015796,2]
[402683109,1768801831708,-415.48898636,0.00015796,2]
[402683110,1768801831717,-500.0,0.00015796,2]
[402683111,1768801831727,-500.0,0.00015796,2]
[402683112,1768801831737,-202.88619949,0.00015796,2]
[402683119,1768801838001,-443.51314194,0.00015796,2]
[402683120,1768801838011,-392.50510109,0.00015796,2]
[402683121,1768801838021,-201.65344407,0.00015796,2]
[402683122,1768801838031,-300.35211959,0.00015796,2]
[402683123,1768801838041,-441.63337288,0.00015796,2]
[402683124,1768801838051,-500.0,0.00015796,2]
[402683125,1768801838061,-500.0,0.00015796,2]
[402683126,1768801838071,-500.0,0.00015796,2]
[402683127,1768801838081,-500.0,0.00015796,2]
[402683128,1768801838094,-373.0104993,0.00015796,2]
[402683129,1768801838104,-500.0,0.00015796,2]
[402683131,1768801838113,-500.0,0.00015796,2]
[402683132,1768801838123,-500.0,0.00015796,2]
[402683133,1768801838133,-292.45713191,0.00015796,2]
[402683134,1768801838143,-500.0,0.00015796,2]
[402683135,1768801838163,-500.0,0.00015796,2]
[402683137,1768801838176,-286.0,0.00015796,2]
[402683138,1768801838186,-743.69,0.00015796,2]
[402683140,1768801838196,-2408.79439831,0.00015797,2]
[402683141,1768801838214,-2990.20413863,0.00015797,2]
[402683143,1768801839890,-312.3285,0.00015797,2]
[402683144,1768801840002,-657993.54884644,0.00015797,2]
[402683145,1768801840013,-299.20378663,0.00015797,2]
[402683146,1768801840023,-500.0,0.00015797,2]
[402683147,1768801840032,-4113.9014,0.00015797,2]
[402683148,1768801840042,-82328.2612,0.00015797,2]
[402683149,1768801840054,-450.0,0.00015797,2]
[402683150,1768801840064,-450.0,0.00015797,2]
[402683151,1768801840074,-450.0,0.00015797,2]
[402683152,1768801840084,-450.0,0.00015797,2]
[402683153,1768801840093,-450.0,0.00015797,2]
[402683154,1768801840103,-450.0,0.00015797,2]
[402683155,1768801840113,-450.0,0.00015797,2]
[402683156,1768801840123,-450.0,0.00015797,2]
[402683157,1768801840132,-450.0,0.00015797,2]
[402683158,1768801840142,-450.0,0.00015797,2]
[402683159,1768801840152,-450.0,0.00015797,2]
[402683160,1768801840162,-450.0,0.00015797,2]
[402683161,1768801840172,-450.0,0.00015797,2]
[402683163,1768801840182,-450.0,0.00015797,2]
[402683165,1768801840192,-450.0,0.00015797,2]
[402683167,1768801840202,-450.0,0.00015797,2]
[402683169,1768801840212,-450.0,0.00015797,2]
[402683170,1768801840221,-450.0,0.00015797,2]
[402683172,1768801840231,-450.0,0.00015797,2]
[402683174,1768801840241,-450.0,0.00015797,2]
[402683176,1768801840250,-450.0,0.00015797,2]
[402683178,1768801840260,-450.0,0.00015797,2]
[402683180,1768801840269,-450.0,0.00015797,2]
[402683182,1768801840280,-450.0,0.00015797,2]
[402683184,1768801840290,-450.0,0.00015797,2]
[402683186,1768801840300,-450.0,0.00015797,2]
[402683188,1768801840309,-450.0,0.00015797,2]
[402683190,1768801840318,-450.0,0.00015797,2]
[402683192,1768801840328,-450.0,0.00015797,2]
[402683194,1768801840337,-450.0,0.00015797,2]
[402683196,1768801840347,-370.090272,0.00015797,2]
[402683198,1768801840356,-250.0,0.00015806,2]
[402683200,1768801840365,-5768.56505607,0.00015815,2]
[402683202,1768801840375,-269.1,0.00015896,2]
[402683204,1768801840384,-2500.0,0.00015897,2]
[402683206,1768801840393,-329.22631035,0.00015897,2]
[402683208,1768801840402,-400.0,0.000159,5]
[402683210,1768801840412,-250.0,0.00015915,2]
[402683212,1768801840421,-150.0,0.00015915,2]
[402683214,1768801840431,-500.0,0.00015915,2]
[402683215,1768801840440,-500.0,0.00015915,2]
[402683217,1768801840451,-150.0,0.00015915,2]
[402683219,1768801840461,-500.0,0.00015915,2]
[402683221,1768801840470,-150.0,0.00015915,2]
[402683223,1768801840480,-500.0,0.00015915,2]
[402683225,1768801840489,-249.07582255,0.00015915,2]
[402683227,1768801840499,-500.0,0.00015915,2]
[402683229,1768801840508,-150.0,0.00015915,2]
[402683231,1768801840517,-500.0,0.00015915,2]
[402683233,1768801840527,-150.0,0.00015915,2]
[402683235,1768801840536,-150.0,0.00015915,2]
[402683237,1768801840545,-11325.11,0.00015915,2]
[402683239,1768801840554,-9999.99,0.00015915,2]
[402683241,1768801840564,-299.99,0.00015915,2]
[402683243,1768801840573,-9999.99,0.00015915,2]
[402683244,1768801840582,-999.99,0.00015915,2]
[402683246,1768801840592,-9999.99,0.00015915,2]
[402683248,1768801840602,-1199.06,0.00015915,2]
[402683250,1768801840611,-150.99,0.00015915,2]
[402683252,1768801840621,-4999.99,0.00015915,2]
[402683254,1768801840629,-1536.27,0.00015915,2]
[402683256,1768801840639,-310.22,0.00015915,2]
[402683258,1768801840649,-452.11,0.00015915,2]
[402683260,1768801840659,-296.13,0.00015915,2]
[402683262,1768801840669,-1835.03,0.00015915,2]
[402683263,1768801840679,-26210.11,0.00015915,2]
[402683264,1768801840689,-150.0,0.00015915,2]
[402683265,1768801840698,-465.0,0.00015915,2]
[402683266,1768801840708,-500.0,0.00015915,2]
[402683267,1768801840718,-150.0,0.00015915,2]
[402683268,1768801840728,-500.0,0.00015915,2]
[402683269,1768801840738,-423.23,0.00015918,2]
[402683270,1768801840748,-150.0,0.0001597,2]
[402683271,1768801840758,-500.0,0.0001597,2]
[402683272,1768801840768,-500.0,0.0001597,2]
[402683273,1768801840778,-250.0,0.0001597,2]
[402683274,1768801840787,-500.0,0.0001597,2]
[402683275,1768801840799,-150.0,0.0001597,2]
[402683276,1768801840809,-500.0,0.0001597,2]
[402683277,1768801840819,-500.0,0.0001597,2]
[402683278,1768801840828,-150.0,0.0001597,2]
[402683279,1768801840839,-500.0,0.0001597,2]
[402683280,1768801840849,-150.0,0.0001597,2]
[402683281,1768801840858,-201.65720037,0.0001597,2]
[402683282,1768801840867,-262.58907079,0.0001597,2]
[402683283,1768801840876,-465.0,0.0001597,2]
[402683284,1768801840885,-500.0,0.0001597,2]
[402683285,1768801840895,-246.4287002,0.0001597,2]
[402683286,1768801840910,-500.0,0.0001597,2]
[402683287,1768801840920,-286.8814507,0.00015973,2]
[402683288,1768801840931,-25952.27,0.00015987,2]
[402683289,1768801840941,-150.99,0.00015987,2]
[402683290,1768801840951,-1192.77,0.00015987,2]
[402683291,1768801840961,-200.0,0.00015987,2]
[402683292,1768801840971,-369.51952417,0.00015987,2]
[402683293,1768801840980,-200.0,0.00015987,2]
[402683294,1768801840990,-151.0,0.00015987,2]
[402683295,1768801841000,-151.0,0.00015987,2]
[402683296,1768801841009,-500.0,0.00015987,2]
[402683297,1768801841018,-151.0,0.00015987,2]
[402683298,1768801841027,-151.0,0.00015987,2]
[402683299,1768801841037,-450.314911,0.00015987,2]
[402683300,1768801841048,-151.0,0.00015987,2]
[402683301,1768801841058,-151.0,0.00015987,2]
[402683302,1768801841068,-151.0,0.00015987,2]
[402683303,1768801841079,-151.0,0.00015987,2]
[402683304,1768801841090,-151.0,0.00015987,2]
[402683305,1768801841102,-151.0,0.00015987,2]
[402683306,1768801841112,-151.0,0.00015987,2]
[402683307,1768801841123,-151.0,0.00015987,2]
[402683308,1768801841134,-151.0,0.00015987,2]
[402683309,1768801841145,-151.0,0.00015987,2]
[402683310,1768801841155,-151.0,0.00015987,2]
[402683311,1768801841165,-151.0,0.00015987,2]
[402683312,1768801841175,-151.0,0.00015987,2]
[402683313,1768801841186,-151.0,0.00015987,2]
[402683314,1768801841196,-151.0,0.00015987,2]
[402683315,1768801841206,-284.40432592,0.00015987,2]
[402683316,1768801841216,-151.0,0.00015987,2]
[402683317,1768801841226,-151.0,0.00015987,2]
[402683318,1768801841235,-151.0,0.00015987,2]
[402683319,1768801841245,-151.0,0.00015987,2]
[402683320,1768801841255,-151.0,0.00015987,2]
[402683321,1768801841270,-151.0,0.00015987,2]
[402683322,1768801841281,-9999.99,0.00015996,2]
[402683323,1768801841291,-500.0,0.00015996,2]
[402683324,1768801841302,-500.0,0.00015996,2]
[402683325,1768801841312,-500.0,0.00015996,2]
[402683326,1768801841322,-500.0,0.00015996,2]
[402683327,1768801841331,-500.0,0.00015996,2]
[402683328,1768801841341,-500.0,0.00015996,2]
[402683329,1768801841351,-150.0,0.00015996,2]
[402683330,1768801841361,-150.0,0.00015996,2]
[402683331,1768801841371,-43619.31103604,0.00015996,2]
[402683332,1768801841381,-500.0,0.00015996,2]
[402683333,1768801841390,-500.0,0.00015996,2]
[402683334,1768801841402,-500.0,0.00015996,2]
[402683335,1768801841412,-509.1441621,0.00015996,2]
[402683336,1768801841421,-500.0,0.00015996,2]
[402683337,1768801841431,-500.0,0.00015996,2]
[402683338,1768801841441,-500.0,0.00015996,2]
[402683339,1768801841452,-500.0,0.00015996,2]
[402683340,1768801841467,-500.0,0.00015996,2]
[402683341,1768801841479,-511.80432216,0.00015996,2]
[402683342,1768801841496,-500.0,0.00015996,2]
[402683343,1768801841505,-500.0,0.00015996,2]
[402683344,1768801841515,-500.0,0.00015996,2]
[402683345,1768801841526,-500.0,0.00015996,2]
[402683346,1768801841536,-500.0,0.00015996,2]
[402683347,1768801841546,-500.0,0.00015996,2]
[402683348,1768801841555,-289.14683953,0.00015996,2]
[402683349,1768801841565,-500.0,0.00015996,2]
[402683350,1768801841574,-500.0,0.00015996,2]
[402683351,1768801841584,-500.0,0.00015996,2]
[402683352,1768801841594,-499.99999983,0.00015996,2]
[402683353,1768801841604,-500.0,0.00015996,2]
[402683354,1768801841613,-500.0,0.00015996,2]
[402683355,1768801841622,-432.68173668,0.00015996,2]
[402683356,1768801841636,-500.0,0.00015996,2]
[402683357,1768801841648,-500.0,0.00015996,2]
[402683358,1768801841659,-500.0,0.00015996,2]
[402683359,1768801841671,-500.0,0.00015996,2]
[402683360,1768801841682,-500.0,0.00015996,2]
[402683361,1768801841693,-525.29097459,0.00015996,2]
[402683362,1768801841703,-500.0,0.00015996,2]
[402683363,1768801841712,-500.0,0.00015996,2]
[402683364,1768801841722,-500.0,0.00015996,2]
[402683365,1768801841732,-539.68310483,0.00015996,2]
[402683366,1768801841742,-500.0,0.00015996,2]
[402683367,1768801841751,-511.30863973,0.00015996,2]
[402683368,1768801841761,-208.46022007,0.00015996,2]
[402683369,1768801841772,-509.59518052,0.00015999,2]
[402683370,1768801841783,-500.0,0.00015999,2]
[402683371,1768801841794,-523.03845054,0.00015999,2]
[402683372,1768801841804,-500.0,0.00015999,2]
[402683373,1768801841815,-500.0,0.00015999,2]
[402683374,1768801841832,-500.0,0.00015999,2]
[402683375,1768801841844,-500.0,0.00015999,2]
[402683376,1768801841855,-150.0,0.00016025,2]
[402683377,1768801841866,-500.0,0.00016025,2]
[402683378,1768801841876,-500.0,0.00016025,2]
[402683379,1768801841887,-425.79840012,0.00016025,2]
[402683380,1768801841896,-212.75413196,0.00016025,2]
[402683381,1768801841906,-500.0,0.00016025,2]
[402683382,1768801841918,-229.99704152,0.00016025,2]
[402683383,1768801841928,-150.0,0.00016025,2]
[402683384,1768801841938,-343.5782586,0.00016025,2]
[402683385,1768801841948,-150.0,0.00016025,2]
[402683386,1768801841958,-465.0,0.00016025,2]
[402683387,1768801841969,-500.0,0.00016025,2]
[402683388,1768801841979,-371.95168859,0.00016025,2]
[402683389,1768801841989,-6765.48610641,0.00016047,2]
[402683390,1768801842000,-743.69,0.0001607,2]
[402683391,1768801842010,-209.98696259,0.00016071,2]
[402683392,1768801842024,-150.0,0.00016079,2]
[402683393,1768801842035,-500.0,0.00016079,2]
[402683394,1768801842045,-500.0,0.00016079,2]
[402683395,1768801842056,-500.0,0.00016079,2]
[402683396,1768801842067,-222.52118591,0.00016079,2]
[402683397,1768801842077,-250.0,0.00016079,2]
[402683398,1768801842087,-465.0,0.00016079,2]
[402683399,1768801842097,-500.0,0.00016079,2]
[402683400,1768801842107,-417.0916,0.00016098,2]
[402683401,1768801842117,-500.0,0.00016127,2]
[402683402,1768801842127,-500.0,0.00016127,2]
[402683403,1768801842137,-151.0,0.00016134,2]
[402683404,1768801842148,-151.0,0.00016134,2]
[402683405,1768801842158,-218.969955,0.00016134,2]
[402683406,1768801842169,-500.0,0.00016134,2]
[402683407,1768801842179,-160.2774242,0.00016134,2]
[402683408,1768801842189,-500.0,0.00016134,2]
[402683409,1768801842198,-465.0,0.00016134,2]
[402683410,1768801842210,-500.0,0.00016134,2]
[402683411,1768801842220,-500.0,0.00016189,2]
[402683412,1768801842230,-500.0,0.00016189,2]
[402683413,1768801842240,-465.0,0.00016189,2]
[402683414,1768801842250,-500.0,0.00016189,2]
[402683415,1768801842259,-500.0,0.00016196,2]
[402683416,1768801842269,-500.0,0.00016197,2]
[402683417,1768801842279,-500.0,0.00016197,2]
[402683418,1768801842289,-150.29095928,0.00016197,2]
[402683419,1768801842299,-500.0,0.00016197,2]
[402683420,1768801842308,-500.0,0.00016197,2]
[402683421,1768801842319,-500.0,0.00016197,2]
[402683422,1768801842328,-500.0,0.00016197,2]
[402683423,1768801842339,-150.0,0.000162,2]
[402683424,1768801842350,-150.0,0.000162,2]
[402683425,1768801842361,-150.0,0.000162,2]
[402683426,1768801842370,-150.0,0.000162,2]
[402683427,1768801842383,-150.0,0.000162,2]
[402683428,1768801842394,-150.0,0.000162,2]
[402683429,1768801842405,-150.0,0.000162,2]
[402683430,1768801842415,-17599.25556535,0.00016229,2]
[402683431,1768801842429,-329.22631029,0.00016231,2]
[402683432,1768801842440,-500.0,0.00016244,2]
[402683433,1768801842449,-500.0,0.00016244,2]
[402683434,1768801842460,-465.0,0.00016244,2]
[402683435,1768801842470,-500.0,0.00016244,2]
[402683436,1768801842480,-500.0,0.00016245,2]
[402683437,1768801842489,-500.0,0.00016245,2]
[402683438,1768801842499,-318.85334381,0.00016245,2]
[402683439,1768801842508,-369.91760368,0.00016245,2]
[402683441,1768801842518,-6765.48610641,0.00016278,2]
[402683443,1768801842528,-500.0,0.00016299,2]
[402683445,1768801842537,-500.0,0.00016299,2]
[402683447,1768801842547,-465.0,0.00016299,2]
[402683450,1768801842556,-500.0,0.00016299,2]
[402683452,1768801842566,-743.69,0.00016344,2]
[402683454,1768801842575,-500.0,0.00016353,2]
[402683455,1768801842585,-500.0,0.00016353,2]
[402683456,1768801842595,-465.0,0.00016353,2]
[402683458,1768801842604,-500.0,0.00016353,2]
[402683460,1768801842616,-500.0,0.00016356,2]
[402683462,1768801842626,-500.0,0.00016356,2]
[402683464,1768801842636,-1700.0,0.00016356,2]
[402683465,1768801842645,-835.0,0.000164,2]
[402683466,1768801842657,-500.0,0.00016408,2]
[402683467,1768801842666,-500.0,0.00016408,2]
[402683468,1768801842676,-465.0,0.00016408,2]
[402683469,1768801842686,-500.0,0.00016408,2]
[402683470,1768801842696,-500.0,0.00016437,2]
[402683471,1768801842707,-500.0,0.00016438,2]
[402683472,1768801842718,-1168.58,0.00016438,2]
[402683473,1768801842727,-1168.58,0.00016438,2]
[402683474,1768801842737,-1168.58,0.00016438,2]
[402683475,1768801842747,-1168.58,0.00016438,2]
[402683476,1768801842757,-1168.58,0.00016438,2]
[402683477,1768801842767,-1168.58,0.00016438,2]
[402683478,1768801842777,-1168.58,0.00016438,2]
[402683479,1768801842787,-1168.58,0.00016438,2]
[402683480,1768801842796,-1168.58,0.00016438,2]
[402683481,1768801842805,-1168.58,0.00016438,2]
[402683482,1768801842815,-1168.58,0.00016438,2]
[402683483,1768801842825,-1168.58,0.00016438,2]
[402683484,1768801842839,-1168.58,0.00016438,2]
[402683485,1768801842849,-1168.58,0.00016438,2]
[402683486,1768801842860,-1168.58,0.00016438,2]
[402683487,1768801842870,-1168.58,0.00016438,2]
[402683488,1768801842879,-1168.58,0.00016438,2]
[402683489,1768801842889,-1168.58,0.00016438,2]
[402683490,1768801842899,-1168.58,0.00016438,2]
[402683491,1768801842908,-1168.58,0.00016438,2]
[402683492,1768801842919,-1168.58,0.00016438,2]
[402683493,1768801842928,-1168.58,0.00016438,2]
[402683494,1768801842937,-1168.58,0.00016438,2]
[402683495,1768801842948,-1168.68360185,0.00016438,2]
[402683496,1768801842958,-603.26732736,0.00016438,2]
[402683497,1768801842968,-300.58340851,0.00016438,2]
[402683498,1768801842979,-301.40535093,0.00016438,2]
[402683499,1768801842988,-150.0,0.00016438,2]
[402683500,1768801842998,-372.22863913,0.00016438,2]
[402683501,1768801843009,-500.0,0.00016438,2]
[402683502,1768801843022,-500.0,0.00016438,2]
[402683503,1768801843032,-500.0,0.00016438,2]
[402683504,1768801843042,-500.0,0.00016438,2]
[402683505,1768801843052,-500.0,0.00016438,2]
[402683506,1768801843062,-500.0,0.00016438,2]
[402683507,1768801843072,-500.0,0.00016438,2]
[402683508,1768801843082,-500.0,0.00016438,2]
[402683509,1768801843092,-500.0,0.00016438,2]
[402683510,1768801843102,-500.0,0.00016438,2]
[402683511,1768801843112,-500.0,0.00016438,2]
[402683512,1768801843123,-500.0,0.00016438,2]
[402683513,1768801843132,-500.0,0.00016438,2]
[402683514,1768801843142,-500.0,0.00016438,2]
[402683516,1768801843152,-500.0,0.00016438,2]
[402683518,1768801843162,-500.0,0.00016438,2]
[402683520,1768801843172,-500.0,0.00016438,2]
[402683522,1768801843181,-500.0,0.00016438,2]
[402683524,1768801843191,-500.0,0.00016438,2]
[402683526,1768801843201,-500.0,0.00016438,2]
[402683527,1768801843211,-500.0,0.00016438,2]
[402683529,1768801843221,-500.0,0.00016438,2]
[402683530,1768801843232,-431.7090782,0.00016438,2]
[402683531,1768801843242,-500.0,0.00016438,2]
[402683532,1768801843251,-500.0,0.00016438,2]
[402683533,1768801843261,-500.0,0.00016438,2]
[402683534,1768801843270,-500.0,0.00016438,2]
[402683535,1768801843279,-500.0,0.00016438,2]
[402683536,1768801843289,-500.0,0.00016438,2]
[402683537,1768801843300,-500.0,0.00016438,2]
[402683538,1768801843309,-500.0,0.00016438,2]
[402683539,1768801843320,-500.0,0.00016438,2]
[402683540,1768801843331,-500.0,0.00016438,2]
[402683541,1768801843340,-500.0,0.00016438,2]
[402683542,1768801843350,-500.0,0.00016438,2]